bitfinex-derivatives/quotes_BNBF0:USTF0_20250608
["timestamp","ask_amount","ask_price","bid_price","bid_amount"]
[1749376289481,0.2685237,648.24,647.77,1.53703747]
[1749376293180,0.2685237,648.24,647.82,1.53703747]
[1749376294482,0.2685237,648.24,647.81,1.53703747]
[1749376297583,0.5770514,648.24,647.81,1.53703747]
[1749376297789,0.30853246,648.23,647.28,1.53703747]
[1749376298490,0.30853246,648.23,647.26,1.53703747]
[1749376299091,0.30853246,648.23,647.25,1.53703747]
[1749376299391,0.30853246,648.23,647.24,1.53703747]
[1749376300590,0.30853246,648.23,647.23,1.53703747]
[1749376301390,0.30853246,648.23,647.22,1.53703747]
[1749376303490,0.30853246,648.23,647.21,1.53703747]
[1749376303887,0.30853246,648.23,647.25,1.53703747]
[1749376305392,0.30853246,648.23,647.24,1.53703747]
[1749376306688,0.30853246,648.23,646.99,2.30823363]
[1749376306689,0.30853246,648.23,647.23,1.53703747]
[1749376306890,0.30853246,648.23,647.21,1.53703747]
[1749376307392,0.30853246,648.23,647.22,1.53703747]
[1749376307594,0.30853246,648.23,647.4,1.53703747]
[1749376308289,0.30853246,648.23,647.39,1.53703747]
[1749376308795,0.30853246,648.23,647.34,1.53703747]
[1749376309096,0.30853246,648.23,647.36,1.53703747]
[1749376309691,0.30853246,648.23,647.35,1.53703747]
[1749376311188,0.30853246,648.23,647.36,1.53703747]
[1749376313201,0.30853246,648.23,647.38,1.53703747]
[1749376313492,0.30853246,648.23,647.37,1.53703747]
[1749376315994,0.30853246,648.23,647.21,2.30823363]
[1749376315995,0.30853246,648.23,647.39,1.53703747]
[1749376316794,0.30853246,648.23,647.41,1.53703747]
[1749376318601,0.30853246,648.23,647.49,1.53703747]
[1749376318800,0.30853246,648.23,647.48,1.53703747]
[1749376319200,0.30853246,648.23,647.46,1.53703747]
[1749376319400,0.30853246,648.23,647.45,1.53703747]
[1749376319701,0.30853246,648.23,647.46,1.53703747]
[1749376319900,0.30853246,648.23,647.45,1.53703747]
[1749376320898,0.30853246,648.23,647.46,1.53703747]
[1749376322199,0.30853246,648.23,647.45,1.53703747]
[1749376323500,0.30853246,648.23,646.83,3.79597196]
[1749376323501,0.30853246,648.23,647.46,1.53703747]
[1749376326900,0.30853246,648.23,646.81,0.26852577]
[1749376326901,0.30853246,648.23,647.47,1.53703747]
[1749376327107,0.30853246,648.23,647.46,1.53703747]
[1749376327301,0.30853246,648.23,647.47,1.53703747]
[1749376328104,0.30853246,648.23,647.48,1.53703747]
[1749376328703,0.30853246,648.23,647.49,1.53703747]
[1749376329403,0.30853246,648.23,647.09,1.53703747]
[1749376329700,0.30853246,648.23,647.08,1.53703747]
[1749376330302,0.30853246,648.23,647.07,1.53703747]
[1749376330702,0.30853246,648.23,647.06,1.53703747]
[1749376331007,0.30853246,648.23,647.07,1.53703747]
[1749376332506,0.30853246,648.23,647.08,1.53703747]
[1749376335312,0.30853246,648.23,647.09,1.53703747]
[1749376335708,0.30853246,648.23,647.15,1.53703747]
[1749376336411,0.30853246,648.23,647.16,1.53703747]
[1749376337308,0.30853246,648.23,647.17,1.53703747]
[1749376338509,0.30853246,648.23,647.21,1.53703747]
[1749376339212,0.30853246,648.23,647.35,1.53703747]
[1749376339412,0.30853246,648.23,647.36,1.53703747]
[1749376340411,0.30853246,648.23,647.37,1.53703747]
[1749376340611,0.30853246,648.23,647.39,1.53703747]
[1749376341310,0.30853246,648.23,647.42,1.53703747]
[1749376341512,0.30853246,648.23,647.43,1.53703747]
[1749376342514,0.30853246,648.23,647.44,1.53703747]
[1749376343412,0.30853246,648.23,647.45,1.53703747]
[1749376344235,0.30853246,648.23,647.46,1.53703747]
[1749376344417,0.30853246,648.23,647.47,1.53703747]
[1749376345018,0.30853246,648.23,647.48,1.53703747]
[1749376345518,0.30853246,648.23,647.49,1.53703747]
[1749376346119,1.14389127,648.22,647.52,1.53703747]
[1749376346318,0.30854198,648.21,647.53,1.53703747]
[1749376347017,0.87472171,648.21,647.52,1.53703747]
[1749376347222,0.30854198,648.21,647.52,1.53703747]
[1749376347422,1.45243325,648.21,647.53,1.53703747]
[1749376347916,0.30854198,648.21,647.54,1.53703747]
[1749376348117,1.45243325,648.21,647.53,1.53703747]
[1749376348318,0.30854198,648.21,647.54,1.53703747]
[1749376348520,0.30854198,648.21,647.55,1.53703747]
[1749376349522,1.45243325,648.21,647.55,1.53703747]
[1749376350016,0.30854198,648.21,647.52,1.53703747]
[1749376350422,1.45243325,648.21,647.52,1.53703747]
[1749376350722,1.45243325,648.21,647.51,1.53703747]
[1749376350723,0.30854198,648.21,647.51,1.53703747]
[1749376350922,0.30854198,648.21,647.5,1.53703747]
[1749376351118,0.30854198,648.21,647.49,1.53703747]
[1749376351525,0.30854198,648.21,647.5,1.53703747]
[1749376351824,1.99050959,648.21,647.49,1.53703747]
[1749376352120,1.4223672,648.21,647.5,1.53703747]
[1749376352321,2.09710986,648.21,647.5,1.53703747]
[1749376352522,0.56812052,648.2,647.5,1.53703747]
[1749376352723,0.3085515,648.19,647.5,1.53703747]
[1749376353419,0.3085515,648.19,647.51,1.53703747]
[1749376354521,0.3085515,648.19,647.52,1.53703747]
[1749376355220,0.3085515,648.19,647.53,1.53703747]
[1749376355421,1.45569432,648.19,647.53,1.53703747]
[1749376356324,3.13744249,648.19,647.53,1.53703747]
[1749376356625,4.04896241,648.18,647.54,1.53703747]
[1749376356926,1.42221085,648.17,647.54,1.53703747]
[1749376357127,0.30856578,648.16,647.54,1.53703747]
[1749376357321,0.30856578,648.16,647.56,1.53703747]
[1749376357622,1.42222627,648.16,647.56,1.53703747]
[1749376357825,0.87656539,648.16,647.56,1.53703747]
[1749376358028,3.21036436,648.16,647.56,1.53703747]
[1749376358222,3.21036436,648.16,647.55,1.53703747]
[1749376358223,2.90179858,648.15,647.55,1.53703747]
[1749376358525,1.6816459,648.14,647.56,1.53703747]
[1749376358721,2.33358234,648.14,647.56,1.53703747]
[1749376358923,1.11359606,648.13,647.56,1.53703747]
[1749376359226,0.30857054,648.15,647.56,1.53703747]
[1749376359426,0.87624335,648.15,647.56,1.53703747]
[1749376359723,0.30857054,648.15,647.55,1.53703747]
[1749376359920,0.30857054,648.15,647.61,1.53703747]
[1749376360722,0.30857054,648.15,647.62,1.53703747]
[1749376361922,0.30857054,648.15,647.29,1.53703747]
[1749376362121,0.30857054,648.15,646.81,0.26852577]
[1749376362122,0.30857054,648.15,647.27,1.53703747]
[1749376362327,0.30857054,648.15,646.81,0.26852577]
[1749376362328,0.30857054,648.15,647.28,1.53703747]
[1749376362925,0.30857054,648.15,647.27,1.53703747]
[1749376364324,0.30857054,648.15,647.32,1.53703747]
[1749376364927,0.30857054,648.15,647.35,1.53703747]
[1749376365128,0.30857054,648.15,647.32,1.53703747]
[1749376365329,0.30857054,648.15,647.33,1.53703747]
[1749376366028,0.30857054,648.15,647.32,1.53703747]
[1749376366226,0.30857054,648.15,647.39,1.53703747]
[1749376366528,0.30857054,648.15,647.4,1.53703747]
[1749376366730,0.30857054,648.15,647.42,1.53703747]
[1749376367931,0.30857054,648.15,647.44,1.53703747]
[1749376371830,0.30857054,648.15,647.58,1.53703747]
[1749376372926,0.30857054,648.15,647.59,1.53703747]
[1749376373129,0.30857054,648.15,647.62,1.53703747]
[1749376373925,0.30857054,648.15,647.61,1.53703747]
[1749376375030,0.30857054,648.15,647.62,1.53703747]
[1749376376433,0.30857054,648.15,647.63,1.53703747]
[1749376376628,0.30857054,648.15,647.64,1.53703747]
[1749376378230,0.30857054,648.15,647.58,1.53703747]
[1749376378430,0.30857054,648.15,647.59,1.53703747]
[1749376379229,0.30857054,648.15,647.58,1.53703747]
[1749376381429,0.30857054,648.15,647.57,1.53703747]
[1749376385038,0.30857054,648.15,647.58,1.53703747]
[1749376387639,0.30857054,648.15,647.45,2.30823363]
[1749376387640,0.30857054,648.15,647.59,1.53703747]
[1749376388037,0.30857054,648.15,647.62,1.53703747]
[1749376388737,0.30857054,648.15,647.63,1.53703747]
[1749376389037,0.30857054,648.15,647.64,1.53703747]
[1749376390341,0.30857054,648.15,647.63,1.53703747]
[1749376390542,0.30857054,648.15,647.61,1.53703747]
[1749376391243,0.30857054,648.15,647.63,1.53703747]
[1749376393944,0.30857054,648.15,647.62,1.53703747]
[1749376394745,0.30857054,648.15,647.64,1.53703747]
[1749376394944,0.30857054,648.15,647.66,1.53703747]
[1749376395443,0.30857054,648.15,647.65,1.53703747]
[1749376395642,0.30857054,648.15,647.67,1.53703747]
[1749376395945,0.30857054,648.15,647.66,1.53703747]
[1749376396741,0.30857054,648.15,647.65,1.53703747]
[1749376396945,0.30857054,648.15,647.66,1.53703747]
[1749376397447,0.30857054,648.15,647.65,1.53703747]
[1749376400349,0.30857054,648.15,647.66,1.53703747]
[1749376401344,0.30857054,648.15,647.65,1.53703747]
[1749376404351,0.26862423,648.03,647.65,1.53703747]
[1749376404551,0.26862423,648.03,647.71,1.53703747]
[1749376404847,0.26862423,648.03,647.63,1.53703747]
[1749376406547,0.26862423,648.03,647.58,1.53703747]
[1749376407746,0.26862423,648.03,647.59,1.53703747]
[1749376408451,0.26862423,648.03,647.58,1.53703747]
[1749376414759,0.26862423,648.03,647.61,1.53703747]
[1749376415155,0.26862423,648.03,647.3,1.53703747]
[1749376415955,0.26862423,648.03,647.28,1.53703747]
[1749376416354,0.26862423,648.03,647.29,1.53703747]
[1749376421065,0.26862423,648.03,647.3,1.53703747]
[1749376424869,0.26862423,648.03,646.86,0.26862423]
[1749376424870,0.26862423,648.03,647.41,1.53703747]
[1749376425074,0.26862423,648.03,646.86,0.26862423]
[1749376425075,0.26862423,648.03,647.46,1.53703747]
[1749376425871,0.26862423,648.03,647.47,1.53703747]
[1749376427175,0.26862423,648.03,647.46,1.53703747]
[1749376428074,0.26862423,648.03,647.47,1.53703747]
[1749376431274,0.26862423,648.03,647.52,1.53703747]
[1749376431573,0.26862423,648.03,647.12,1.53703747]
[1749376432178,0.26862423,648.03,647.11,1.53703747]
[1749376432376,0.30863244,648.02,647.1,1.53703747]
[1749376433074,0.30863244,648.02,647.09,1.53703747]
[1749376434576,0.30863244,648.02,647.08,1.53703747]
[1749376435579,0.30863244,648.02,647.13,1.53703747]
[1749376436379,0.30863244,648.02,647.15,1.53703747]
[1749376438579,0.30863244,648.02,647.14,1.53703747]
[1749376439180,0.30863244,648.02,647.17,1.53703747]
[1749376439780,0.30863244,648.02,647.16,1.53703747]
[1749376440179,0.30863244,648.02,646.77,0.26868437]
[1749376440180,0.30863244,648.02,647.18,1.53703747]
[1749376440880,0.30863244,648.02,647.19,1.53703747]
[1749376441186,0.30863244,648.02,647.18,1.53703747]
[1749376441387,0.30863244,648.02,647.28,1.53703747]
[1749376444189,0.30863244,648.02,647.29,1.53703747]
[1749376444488,0.30863244,648.02,647.28,1.53703747]
[1749376445385,0.30863244,648.02,647.29,1.53703747]
[1749376446388,0.30863244,648.02,647.3,1.53703747]
[1749376448987,0.30863244,648.02,647.33,1.53703747]
[1749376449692,0.30863244,648.02,647.34,1.53703747]
[1749376450989,0.30863244,648.02,647.38,1.53703747]
[1749376454596,0.30863244,648.02,647.41,1.53703747]
[1749376457295,0.30863244,648.02,647.42,1.53703747]
[1749376462499,0.30863244,648.02,647.43,1.53703747]
[1749376462902,0.30863244,648.02,647.42,1.53703747]
[1749376463304,0.30863244,648.02,647.43,1.53703747]
[1749376464802,0.30863244,648.02,647.37,1.53703747]
[1749376465301,0.30863244,648.02,647.38,1.53703747]
[1749376466402,0.30863244,648.02,647.39,1.53703747]
[1749376467308,0.30863244,648.02,647.38,1.53703747]
[1749376468908,0.30863244,648.02,647.39,1.53703747]
[1749376470006,0.30863244,648.02,647.37,1.53703747]
[1749376470406,0.30863244,648.02,647.38,1.53703747]
[1749376471909,0.30863244,648.02,647.39,1.53703747]
[1749376473107,0.30863244,648.02,647.4,1.53703747]
[1749376474507,0.30863244,648.02,647.41,1.53703747]
[1749376474707,0.30863244,648.02,647.45,1.53703747]
[1749376476112,0.30863244,648.02,647.46,1.53703747]
[1749376476310,2.6407016,648.02,647.46,1.53703747]
[1749376476610,1.78422392,648.01,647.42,1.53703747]
[1749376476810,0.30863244,648.02,647.43,1.53703747]
[1749376477114,0.30863244,648.02,647.42,1.53703747]
[1749376478512,0.30863244,648.02,647.43,1.53703747]
[1749376478714,0.30863244,648.02,647.42,1.53703747]
[1749376479418,0.30863244,648.02,647.43,1.53703747]
[1749376480516,0.30863244,648.02,647.44,1.53703747]
[1749376482113,0.30863244,648.02,647.45,1.53703747]
[1749376482316,0.30863244,648.02,647.44,1.53703747]
[1749376483415,0.30863244,648.02,647.45,1.53703747]
[1749376486521,0.30863244,648.02,647.49,1.53703747]
[1749376487020,0.30863244,648.02,647.54,1.53703747]
[1749376487623,0.30863244,648.02,647.55,1.53703747]
[1749376487818,0.30863244,648.02,647.54,1.53703747]
[1749376488022,0.30863244,648.02,647.55,1.53703747]
[1749376489520,0.30863244,648.02,647.56,1.53703747]
[1749376491024,0.30863244,648.02,647.58,1.53703747]
[1749376492223,0.30863244,648.02,647.59,1.53703747]
[1749376496523,0.30863244,648.02,647.58,1.53703747]
[1749376499230,0.30863244,648.02,647.59,1.53703747]
[1749376499733,0.30863244,648.02,647.57,1.53703747]
[1749376499933,0.30863244,648.02,647.58,1.53703747]
[1749376500528,0.30863244,648.02,647.59,1.53703747]
[1749376500731,0.30863244,648.02,647.58,1.53703747]
[1749376511837,0.30863244,648.02,647.08,1.53703747]
[1749376512542,0.30863244,648.02,647.07,1.53703747]
[1749376515337,0.30863244,648.02,647.06,1.53703747]
[1749376517445,0.30863244,648.02,647.04,1.53703747]
[1749376517736,0.30863244,648.02,647.03,1.53703747]
[1749376518241,0.30863244,648.02,647.02,1.53703747]
[1749376519837,0.30863244,648.02,647.01,1.53703747]
[1749376520341,0.30863244,648.02,647.02,1.53703747]
[1749376521440,0.30863244,648.02,647.15,1.53703747]
[1749376521639,0.30863244,648.02,647.24,1.53703747]
[1749376521940,0.30863244,648.02,647.22,1.53703747]
[1749376522244,0.30863244,648.02,647.24,1.53703747]
[1749376523444,0.30863244,648.02,647.23,1.53703747]
[1749376524244,0.30863244,648.02,646.41,3.79597196]
[1749376524245,0.30863244,648.02,647.22,1.53703747]
[1749376524948,0.30863244,648.02,647.23,1.53703747]
[1749376525247,0.30863244,648.02,647.22,1.53703747]
[1749376525646,0.30863244,648.02,647.21,1.53703747]
[1749376526142,2.0908933,648.02,647.21,1.53703747]
[1749376526346,1.21730625,648.01,647.21,1.53703747]
[1749376526545,0.30864197,648.0,647.21,1.53703747]
[1749376527044,0.30864197,648.0,647.22,1.53703747]
[1749376527748,0.30864197,648.0,647.24,1.53703747]
[1749376528948,0.30864197,648.0,647.27,1.53703747]
[1749376529543,0.30864197,648.0,647.28,1.53703747]
[1749376530049,0.30864197,648.0,646.82,1.53703747]
[1749376530347,0.30864197,648.0,646.81,1.53703747]
[1749376530548,0.30864197,648.0,646.8,1.53703747]
[1749376530948,0.30864197,648.0,646.79,1.53703747]
[1749376531345,0.30864197,648.0,646.78,1.53703747]
[1749376531845,0.56455799,647.99,646.78,1.53703747]
[1749376532044,0.30865626,647.97,646.77,1.53703747]
[1749376532249,0.30865626,647.97,646.76,1.53703747]
[1749376533344,0.30865626,647.97,646.75,1.53703747]
[1749376534249,0.30865626,647.97,646.8,1.53703747]
[1749376535246,0.30865626,647.97,646.79,1.53703747]
[1749376536246,0.30865626,647.97,646.78,1.53703747]
[1749376537052,0.30865626,647.97,646.77,1.53703747]
[1749376537346,0.30865626,647.97,646.76,1.53703747]
[1749376537546,0.30865626,647.97,646.77,1.53703747]
[1749376537753,0.30865626,647.97,646.78,1.53703747]
[1749376537951,0.30865626,647.97,646.79,1.53703747]
[1749376538147,0.30865626,647.97,646.8,1.53703747]
[1749376538349,0.30865626,647.97,646.79,1.53703747]
[1749376538549,0.30865626,647.97,646.84,1.53703747]
[1749376539253,0.30865626,647.97,646.83,1.53703747]
[1749376539850,0.30865626,647.97,646.87,1.53703747]
[1749376540352,0.30865626,647.97,646.86,1.53703747]
[1749376540849,0.30865626,647.97,646.89,1.53703747]
[1749376541054,0.30865626,647.97,646.91,1.53703747]
[1749376541451,2.6278855,647.97,646.91,1.53703747]
[1749376541650,2.88176093,647.96,646.91,1.53703747]
[1749376541948,0.30867055,647.94,646.91,1.53703747]
[1749376542151,1.1483233,647.92,647.02,1.53703747]
[1749376542349,0.30868961,647.9,647.02,1.53703747]
[1749376543151,1.97700281,647.9,647.02,1.53703747]
[1749376543456,0.30868961,647.9,647.01,1.53703747]
[1749376543954,0.30868961,647.9,647.02,1.53703747]
[1749376545357,0.30868961,647.9,647.08,1.53703747]
[1749376546053,0.30868961,647.9,647.1,1.53703747]
[1749376546656,0.30868961,647.9,647.11,1.53703747]
[1749376547452,0.30868961,647.9,647.13,1.53703747]
[1749376547656,0.30868961,647.9,647.16,1.53703747]
[1749376547854,0.30868961,647.9,647.17,1.53703747]
[1749376549357,0.30868961,647.9,647.18,1.53703747]
[1749376549856,0.30868961,647.9,647.17,1.53703747]
[1749376550054,0.30868961,647.9,647.18,1.53703747]
[1749376550754,0.30868961,647.9,647.17,1.53703747]
[1749376551159,0.30868961,647.9,647.1,1.53703747]
[1749376553058,0.30868961,647.9,647.09,1.53703747]
[1749376554561,0.30868961,647.9,647.1,1.53703747]
[1749376557363,0.30868961,647.9,647.11,1.53703747]
[1749376558761,0.30868961,647.9,646.97,2.30823363]
[1749376558762,0.30868961,647.9,647.12,1.53703747]
[1749376558959,0.30868961,647.9,647.05,1.53703747]
[1749376559765,0.30868961,647.9,647.06,1.53703747]
[1749376561264,0.30868961,647.9,646.76,1.53703747]
[1749376561667,0.30868961,647.9,646.77,1.53703747]
[1749376562163,0.30868961,647.9,646.76,1.53703747]
[1749376564465,0.30868961,647.9,646.77,1.53703747]
[1749376564668,0.30868961,647.9,646.79,1.53703747]
[1749376564866,0.30868961,647.9,646.8,1.53703747]
[1749376565265,0.30868961,647.9,646.81,1.53703747]
[1749376565666,0.30868961,647.9,646.82,1.53703747]
[1749376567266,0.30868961,647.9,646.85,1.53703747]
[1749376567465,0.30868961,647.9,646.86,1.53703747]
[1749376568467,0.30868961,647.9,646.87,1.53703747]
[1749376568668,0.30868961,647.9,646.79,1.53703747]
[1749376569269,0.30868961,647.9,646.8,1.53703747]
[1749376570267,0.30868961,647.9,646.81,1.53703747]
[1749376571068,0.30868961,647.9,646.87,1.53703747]
[1749376571268,0.30868961,647.9,646.88,1.53703747]
[1749376573173,0.30868961,647.9,646.9,1.53703747]
[1749376573374,0.30868961,647.9,646.89,1.53703747]
[1749376573568,0.30868961,647.9,646.9,1.53703747]
[1749376573769,0.30868961,647.9,646.89,1.53703747]
[1749376574373,0.30868961,647.9,646.9,1.53703747]
[1749376576070,0.30868961,647.9,646.91,1.53703747]
[1749376576572,0.30868961,647.9,646.87,1.53703747]
[1749376577875,0.26883901,647.65,646.87,1.53703747]
[1749376578276,0.26883901,647.65,646.88,1.53703747]
[1749376578477,0.26883901,647.65,646.93,1.53703747]
[1749376582677,0.26883901,647.65,646.94,1.53703747]
[1749376583082,0.26883901,647.65,646.93,1.53703747]
[1749376583283,0.26883901,647.65,646.94,1.53703747]
[1749376585283,0.26883901,647.65,646.95,1.53703747]
[1749376585888,0.26883901,647.65,646.94,1.53703747]
[1749376586485,0.26883901,647.65,647.04,1.53703747]
[1749376588588,0.26883901,647.65,647.05,1.53703747]
[1749376589186,0.26883901,647.65,647.04,1.53703747]
[1749376589488,0.26883901,647.65,647.05,1.53703747]
[1749376590190,0.26883901,647.65,647.06,1.53703747]
[1749376592888,0.26883901,647.65,647.07,1.53703747]
[1749376593093,0.26883901,647.65,647.09,1.53703747]
[1749376593793,0.26883901,647.65,646.99,1.53703747]
[1749376593990,0.26883901,647.65,647.0,1.53703747]
[1749376594297,0.26883901,647.65,647.03,1.53703747]
[1749376597295,0.26883901,647.65,647.01,1.53703747]
[1749376602297,0.26883901,647.65,646.76,1.53703747]
[1749376602597,0.26883901,647.65,646.83,1.53703747]
[1749376603598,0.26883901,647.65,646.84,1.53703747]
[1749376603798,0.26883901,647.65,646.83,1.53703747]
[1749376604202,0.26883901,647.65,646.87,1.53703747]
[1749376604501,0.26883901,647.65,646.91,1.53703747]
[1749376606905,0.26883901,647.65,647.01,1.53703747]
[1749376607402,0.26883901,647.65,647.02,1.53703747]
[1749376608708,0.26883901,647.65,646.94,1.53703747]
[1749376610703,0.26883901,647.65,646.95,1.53703747]
[1749376612504,0.26883901,647.65,646.96,1.53703747]
[1749376614006,0.26883901,647.65,646.97,1.53703747]
[1749376614408,0.26883901,647.65,646.95,1.53703747]
[1749376615208,0.26883901,647.65,646.96,1.53703747]
[1749376617409,0.26883901,647.65,646.97,1.53703747]
[1749376618411,0.26883901,647.65,647.04,1.53703747]
[1749376619212,0.26883901,647.65,647.05,1.53703747]
[1749376622013,0.26883901,647.65,647.04,1.53703747]
[1749376623910,0.30881353,647.64,646.62,1.53703747]
[1749376624715,0.30881353,647.64,646.64,1.53703747]
[1749376625210,0.30881353,647.64,646.65,1.53703747]
[1749376626012,0.30881353,647.64,646.64,1.53703747]
[1749376626211,0.30881353,647.64,646.65,1.53703747]
[1749376626610,0.30881353,647.64,646.64,1.53703747]
[1749376627016,0.30881353,647.64,646.65,1.53703747]
[1749376627311,0.30881353,647.64,646.64,1.53703747]
[1749376627712,0.30881353,647.64,646.65,1.53703747]
[1749376628212,0.30881353,647.64,646.66,1.53703747]
[1749376628515,0.30881353,647.64,646.65,1.53703747]
[1749376630215,0.30881353,647.64,646.66,1.53703747]
[1749376631115,0.30881353,647.64,646.65,1.53703747]
[1749376633821,0.30881353,647.64,646.85,1.53703747]
[1749376636923,0.30881353,647.64,646.82,1.53703747]
[1749376637617,0.30881353,647.64,646.81,1.53703747]
[1749376637818,0.30881353,647.64,646.82,1.53703747]
[1749376640019,0.30881353,647.64,646.83,1.53703747]
[1749376640820,0.30881353,647.64,646.84,1.53703747]
[1749376642921,0.30881353,647.64,646.93,1.53703747]
[1749376646827,0.30881353,647.64,647.0,1.53703747]
[1749376650934,0.30881353,647.64,646.98,1.53703747]
[1749376653140,0.30881353,647.64,646.99,1.53703747]
[1749376654342,0.30881353,647.64,647.0,1.53703747]
[1749376655941,0.30881353,647.64,647.01,1.53703747]
[1749376656141,0.87212635,647.64,647.01,1.53703747]
[1749376656341,1.98107724,647.64,647.01,1.53703747]
[1749376656640,1.41776442,647.64,647.01,1.53703747]
[1749376656844,0.87225665,647.64,647.01,1.53703747]
[1749376657143,1.98146775,647.64,647.01,1.53703747]
[1749376657339,1.41802247,647.64,647.01,1.53703747]
[1749376657539,0.30881353,647.64,647.01,1.53703747]
[1749376658240,3.19718074,647.64,647.02,1.53703747]
[1749376658444,1.67264434,647.63,647.02,1.53703747]
[1749376658744,0.87225973,647.63,647.02,1.53703747]
[1749376658940,0.3088183,647.63,647.02,1.53703747]
[1749376659840,0.3088183,647.63,647.01,1.53703747]
[1749376660245,0.3088183,647.63,647.02,1.53703747]
[1749376660944,1.45679805,647.63,647.04,1.53703747]
[1749376661143,1.45679805,647.63,646.18,5.32102317]
[1749376661144,1.45679805,647.63,647.05,1.53703747]
[1749376661345,1.14797975,647.62,647.06,1.53703747]
[1749376662041,4.34609895,647.63,647.06,1.53703747]
[1749376662244,3.47502514,647.62,647.06,1.53703747]
[1749376662444,2.89174089,647.61,647.06,1.53703747]
[1749376662744,1.67452811,647.6,647.06,1.53703747]
[1749376663041,1.67452731,647.61,647.06,1.53703747]
[1749376663248,1.14797975,647.62,647.06,1.53703747]
[1749376669740,2.89311593,647.62,647.04,1.53703747]
[1749376669942,1.67520207,647.61,647.04,1.53703747]
[1749376670147,1.78318834,647.62,647.04,1.53703747]
[1749376670342,2.8962506,647.62,647.04,1.53703747]
[1749376670545,2.89626277,647.61,647.04,1.53703747]
[1749376670845,2.89626277,647.6,647.04,1.53703747]
[1749376671042,2.89626277,647.59,647.04,1.53703747]
[1749376671246,2.89623722,647.58,647.05,1.53703747]
[1749376671546,1.45679805,647.63,647.05,1.53703747]
[1749376671547,1.21923075,647.57,647.05,1.53703747]
[1749376671747,2.33167436,647.62,647.05,1.53703747]
[1749376671944,2.89627375,647.61,647.05,1.53703747]
[1749376672242,1.14797975,647.62,647.05,1.53703747]
[1749376673046,1.45679805,647.63,647.03,1.53703747]
[1749376674247,1.45679805,647.63,647.04,1.53703747]
[1749376674443,1.14797975,647.62,647.04,1.53703747]
[1749376674847,4.04419772,647.62,647.04,1.53703747]
[1749376675149,2.896589,647.61,647.03,1.53703747]
[1749376675349,1.21940875,647.6,647.04,1.53703747]
[1749376675542,0.3088183,647.63,647.04,1.53703747]
[1749376675948,0.3088183,647.63,647.06,1.53703747]
[1749376677049,0.3088183,647.63,647.01,1.53703747]
[1749376677545,0.3088183,647.63,647.0,1.53703747]
[1749376678345,0.3088183,647.63,647.01,1.53703747]
[1749376678545,0.3088183,647.63,647.0,1.53703747]
[1749376679446,0.3088183,647.63,647.06,1.53703747]
[1749376681151,0.3088183,647.63,647.05,1.53703747]
[1749376686954,0.3088183,647.63,647.17,1.53703747]
[1749376692162,0.3088183,647.63,647.16,1.53703747]
[1749376694461,0.3088183,647.63,647.14,1.53703747]
[1749376704566,0.3088183,647.63,647.16,1.53703747]
[1749376708574,0.3088183,647.63,647.18,1.53703747]
[1749376710172,0.3088183,647.63,647.16,1.53703747]
[1749376713173,0.3088183,647.63,647.05,2.30823363]
[1749376714079,0.3088183,647.63,647.16,1.53985854]
[1749376714973,0.3088183,647.63,647.05,2.30823363]
[1749376715879,0.3088183,647.63,646.6,3.79597196]
[1749376716681,0.3088183,647.63,647.16,1.54003287]
[1749376717179,0.3088183,647.63,647.06,2.31004931]
[1749376717380,0.3088183,647.63,646.6,3.79597196]
[1749376717776,0.3088183,647.63,647.15,1.54008102]
[1749376718181,0.3088183,647.63,647.16,1.54008102]
[1749376719977,0.3088183,647.63,647.17,1.54008102]
[1749376720678,0.3088183,647.63,647.15,1.54008102]
[1749376720876,0.3088183,647.63,647.14,1.54008102]
[1749376723577,0.3088183,647.63,647.15,1.54008102]
[1749376724080,0.3088183,647.63,647.16,1.54008102]
[1749376724281,0.3088183,647.63,647.15,1.54008102]
[1749376724679,0.3088183,647.63,647.1,1.54008102]
[1749376725479,0.3088183,647.63,647.09,1.54008102]
[1749376726682,0.3088183,647.63,647.08,1.54008102]
[1749376727080,0.3088183,647.63,647.09,1.54008102]
[1749376727684,0.3088183,647.63,647.07,1.54008102]
[1749376728082,0.3088183,647.63,647.06,1.54008102]
[1749376729887,0.3088183,647.63,647.07,1.54008102]
[1749376730083,0.3088183,647.63,647.06,1.54008102]
[1749376730583,0.3088183,647.63,647.08,1.54008102]
[1749376733088,0.3088183,647.63,647.09,1.54008102]
[1749376733286,0.3088183,647.63,647.08,1.54008102]
[1749376733486,0.3088183,647.63,647.09,1.54008102]
[1749376734486,0.3088183,647.63,647.1,1.54008102]
[1749376734686,1.45749203,647.63,647.1,1.54008102]
[1749376736090,4.34313621,647.63,647.1,1.54008102]
[1749376736389,0.56381867,647.62,647.09,1.54008102]
[1749376736587,1.51999619,647.62,647.09,1.54008102]
[1749376736888,0.30882307,647.62,647.09,1.54008102]
[1749376737290,0.87259791,647.62,647.09,1.54008102]
[1749376737586,1.98248039,647.62,647.09,1.54008102]
[1749376737786,1.98247572,647.62,647.09,1.54008102]
[1749376737986,0.87259324,647.62,647.09,1.54008102]
[1749376738185,0.30882307,647.62,647.09,1.54008102]
[1749376738487,1.98249638,647.62,647.09,1.54008102]
[1749376738686,0.30882307,647.62,647.09,1.54008102]
[1749376743590,0.30882307,647.62,647.08,1.54008102]
[1749376745090,1.51890456,647.62,647.08,1.54008102]
[1749376745289,1.9813776,647.62,647.08,1.54008102]